bitfinex-derivatives/quotes_SOLF0:USTF0_20260118
["timestamp","ask_amount","ask_price","bid_price","bid_amount"]
[1768709027921,5.76203045,142.78,142.75,6.3068]
[1768709028222,3.20813744,142.79,142.75,6.3068]
[1768709028522,5.76343557,142.78,142.75,6.3068]
[1768709028724,3.20813744,142.79,142.75,6.3068]
[1768709028929,5.76342628,142.78,142.75,6.3068]
[1768709029121,3.20813744,142.79,142.75,6.3068]
[1768709029318,5.76342628,142.78,142.75,6.3068]
[1768709029524,3.20813744,142.79,142.75,6.3068]
[1768709029827,5.76553353,142.78,142.75,6.3068]
[1768709030024,3.20813744,142.79,142.75,6.3068]
[1768709030227,5.76553353,142.78,142.75,6.3068]
[1768709030529,3.20813744,142.79,142.75,6.3068]
[1768709030719,5.76683242,142.78,142.75,6.3068]
[1768709030920,3.20813744,142.79,142.75,6.3068]
[1768709031226,8.97501853,142.78,142.73,6.3076]
[1768709031526,5.76688109,142.77,142.73,6.3076]
[1768709031825,3.20813744,142.78,142.73,6.3076]
[1768709032026,8.9768475,142.77,142.73,6.3076]
[1768709032226,5.77016714,142.76,142.73,6.3076]
[1768709032426,3.20813744,142.77,142.73,6.3076]
[1768709032631,5.77016714,142.76,142.73,6.3076]
[1768709032831,3.20813744,142.77,142.73,6.3076]
[1768709033024,5.77016714,142.76,142.73,6.3076]
[1768709033329,3.20813744,142.77,142.73,6.3076]
[1768709033529,5.7720103,142.76,142.73,6.3076]
[1768709033827,3.20813744,142.77,142.73,6.3076]
[1768709034129,5.7720103,142.76,142.73,6.3076]
[1768709034328,3.20813744,142.77,142.73,6.3076]
[1768709034530,5.77457732,142.76,142.73,6.3076]
[1768709034730,3.20813744,142.77,142.73,6.3076]
[1768709034928,5.77457732,142.76,142.73,6.3076]
[1768709035229,3.20813744,142.77,142.73,6.3076]
[1768709035429,5.77512444,142.76,142.73,6.3076]
[1768709035632,3.20813744,142.77,142.73,6.3076]
[1768709035828,2.444e-05,142.76,142.73,6.3076]
[1768709036028,3.20813744,142.77,142.73,6.3076]
[1768709042731,9.89330926,142.8,142.73,1.75900553]
[1768709042936,6.54965987,142.81,142.73,1.75900553]
[1768709043235,9.89330926,142.82,142.73,1.75900553]
[1768709043636,3.34364939,142.81,142.73,1.75900553]
[1768709043837,3.34364939,142.81,142.75,6.3068]
[1768709047839,5.65331036,142.8,142.75,6.3068]
[1768709048034,5.65331036,142.79,142.75,6.3068]
[1768709048236,3.34364939,142.81,142.75,6.3068]
[1768709048436,5.65308788,142.8,142.75,6.3068]
[1768709048637,5.65308788,142.79,142.75,6.3068]
[1768709048837,3.34364939,142.81,142.75,6.3068]
[1768709049044,5.65308788,142.8,142.75,6.3068]
[1768709049343,5.65308788,142.79,142.75,6.3068]
[1768709049545,5.65308788,142.78,142.75,6.3068]
[1768709049744,3.34364939,142.8,142.73,6.3075]
[1768709049948,8.99703884,142.79,142.73,6.3075]
[1768709050148,5.65338945,142.78,142.73,6.3075]
[1768709050343,5.65338945,142.77,142.73,6.3075]
[1768709050543,3.34364939,142.79,142.73,6.3075]
[1768709050738,5.65352706,142.78,142.73,6.3075]
[1768709050949,5.65352706,142.77,142.73,6.3075]
[1768709051249,3.34364939,142.79,142.73,6.3075]
[1768709051542,5.65367222,142.78,142.73,6.3075]
[1768709051750,3.34364939,142.79,142.73,6.3075]
[1768709051942,5.65357688,142.78,142.73,6.3075]
[1768709052147,5.65357688,142.77,142.73,6.3075]
[1768709052348,3.34364939,142.79,142.73,6.3075]
[1768709052548,5.65392667,142.78,142.73,6.3075]
[1768709052750,5.65392667,142.77,142.73,6.3075]
[1768709052938,3.34364939,142.79,142.73,6.3075]
[1768709053143,5.65387822,142.78,142.73,6.3075]
[1768709053343,5.65387822,142.77,142.73,6.3075]
[1768709053643,3.34364939,142.79,142.73,6.3075]
[1768709053843,5.65386312,142.78,142.73,6.3075]
[1768709054045,5.65386312,142.77,142.73,6.3075]
[1768709054247,3.34364939,142.79,142.73,6.3075]
[1768709054449,5.65384439,142.78,142.73,6.3075]
[1768709054650,5.65384439,142.77,142.73,6.3075]
[1768709054950,3.34364939,142.79,142.73,6.3075]
[1768709055146,5.65384439,142.78,142.73,6.3075]
[1768709055351,5.65384439,142.77,142.73,6.3075]
[1768709055539,3.34364939,142.79,142.73,6.3075]
[1768709055743,5.65382762,142.78,142.73,6.3075]
[1768709055946,5.65382762,142.77,142.73,6.3075]
[1768709056146,3.34364939,142.79,142.73,6.3075]
[1768709056349,5.65389372,142.78,142.73,6.3075]
[1768709056546,5.65389372,142.77,142.73,6.3075]
[1768709056747,3.34364939,142.79,142.73,6.3075]
[1768709056948,5.65386124,142.78,142.73,6.3075]
[1768709057247,3.34364939,142.79,142.73,6.3075]
[1768709057248,5.65386124,142.77,142.73,6.3075]
[1768709057448,3.34364939,142.79,142.73,6.3075]
[1768709057746,5.65383201,142.78,142.73,6.3075]
[1768709057949,5.65383201,142.77,142.73,6.3075]
[1768709058147,3.34364939,142.79,142.73,6.3075]
[1768709058345,5.65388953,142.78,142.73,6.3075]
[1768709058553,3.34364939,142.79,142.73,6.3075]
[1768709058554,5.65388953,142.77,142.73,6.3075]
[1768709058753,3.34364939,142.79,142.73,6.3075]
[1768709058946,5.65381058,142.78,142.73,6.3075]
[1768709059148,5.65381058,142.77,142.73,6.3075]
[1768709059349,3.34364939,142.79,142.73,6.3075]
[1768709059548,5.653743,142.78,142.73,6.3075]
[1768709059749,5.653743,142.77,142.73,6.3075]
[1768709059950,3.34364939,142.79,142.74,6.3072]
[1768709060150,5.653743,142.78,142.74,6.3072]
[1768709060351,5.653743,142.77,142.74,6.3072]
[1768709060552,3.34364939,142.79,142.74,6.3072]
[1768709060758,5.65373736,142.78,142.74,6.3072]
[1768709061057,5.65373736,142.77,142.74,6.3072]
[1768709061258,3.34364939,142.79,142.74,6.3072]
[1768709061454,5.65377183,142.78,142.74,6.3072]
[1768709061656,5.65377183,142.77,142.74,6.3072]
[1768709061953,3.34364939,142.79,142.74,6.3072]
[1768709062148,5.65377183,142.78,142.74,6.3072]
[1768709062355,5.65377183,142.77,142.74,6.3072]
[1768709062551,3.34364939,142.79,142.74,6.3072]
[1768709062752,5.64005403,142.78,142.74,6.3072]
[1768709062951,5.64005403,142.77,142.74,6.3072]
[1768709063254,3.34364939,142.79,142.74,6.3072]
[1768709063453,5.64004565,142.78,142.74,6.3072]
[1768709063654,5.64004565,142.77,142.74,6.3072]
[1768709063856,3.34364939,142.79,142.74,6.3072]
[1768709064061,5.64004565,142.78,142.74,6.3072]
[1768709064262,5.64004565,142.77,142.74,6.3072]
[1768709064562,3.34364939,142.79,142.74,6.3072]
[1768709064865,5.64004004,142.78,142.74,6.3072]
[1768709065067,5.64004004,142.77,142.74,6.3072]
[1768709065366,3.34364939,142.79,142.74,6.3072]
[1768709065565,5.64004945,142.78,142.74,6.3072]
[1768709065762,5.64004945,142.77,142.74,6.3072]
[1768709065960,3.34364939,142.79,142.74,6.3072]
[1768709066161,5.64004945,142.78,142.74,6.3072]
[1768709066367,5.64004945,142.77,142.74,6.3072]
[1768709066567,3.34364939,142.79,142.74,6.3072]
[1768709066772,5.64000139,142.78,142.74,6.3072]
[1768709067068,5.64000139,142.77,142.74,6.3072]
[1768709067261,3.34364939,142.79,142.74,6.3072]
[1768709067462,5.6400117,142.78,142.74,6.3072]
[1768709067662,5.6400117,142.77,142.74,6.3072]
[1768709067968,3.34364939,142.79,142.72,1.75900553]
[1768709068168,8.93778661,142.78,142.72,1.75900553]
[1768709068371,5.64007684,142.77,142.72,1.75900553]
[1768709068570,3.29770977,142.78,142.72,1.75900553]
[1768709068867,5.64006264,142.77,142.74,6.3073]
[1768709069063,3.29770977,142.78,142.74,6.3073]
[1768709069263,5.64001076,142.77,142.74,6.3073]
[1768709069461,3.29770977,142.78,142.74,6.3073]
[1768709069662,5.64006038,142.77,142.74,6.3073]
[1768709069962,3.29770977,142.78,142.74,6.3073]
[1768709070162,5.64006038,142.77,142.74,6.3073]
[1768709070362,3.29770977,142.78,142.74,6.3073]
[1768709070562,5.64005417,142.77,142.74,6.3073]
[1768709070769,3.29770977,142.78,142.74,6.3073]
[1768709070966,5.64000572,142.77,142.74,6.3073]
[1768709071269,3.29770977,142.78,142.74,6.3073]
[1768709071465,5.64005591,142.77,142.74,6.3073]
[1768709071764,3.29770977,142.78,142.74,6.3073]
[1768709071964,5.64005591,142.77,142.74,6.3073]
[1768709072165,3.29770977,142.78,142.74,6.3073]
[1768709072366,5.64005931,142.77,142.74,6.3073]
[1768709072557,3.29770977,142.78,142.74,6.3073]
[1768709072761,5.64005931,142.77,142.74,6.3073]
[1768709072964,3.29770977,142.78,142.74,6.3073]
[1768709073164,5.64005931,142.77,142.74,6.3073]
[1768709073371,3.29770977,142.78,142.74,6.3073]
[1768709073571,5.64012045,142.77,142.74,6.3073]
[1768709073773,3.29770977,142.78,142.74,6.3073]
[1768709073969,5.64011831,142.77,142.74,6.3073]
[1768709074164,3.29770977,142.78,142.74,6.3073]
[1768709074464,5.64014828,142.77,142.74,6.3073]
[1768709074672,3.29770977,142.78,142.74,6.3073]
[1768709074971,5.6401944,142.77,142.74,6.3073]
[1768709075159,3.29770977,142.78,142.74,6.3073]
[1768709075364,5.62742525,142.77,142.74,6.3073]
[1768709075564,3.29770977,142.78,142.74,6.3073]
[1768709075773,5.62735018,142.77,142.74,6.3073]
[1768709075973,3.29770977,142.78,142.74,6.3073]
[1768709076163,5.62745794,142.77,142.74,6.3073]
[1768709076365,3.29770977,142.78,142.74,6.3073]
[1768709076569,5.62743471,142.77,142.74,6.3073]
[1768709076768,3.29770977,142.78,142.72,1.75900553]
[1768709076968,5.62743471,142.77,142.72,1.75900553]
[1768709077266,3.29770977,142.78,142.72,1.75900553]
[1768709077461,5.62748269,142.77,142.72,1.75900553]
[1768709077662,3.29770977,142.78,142.72,1.75900553]
[1768709077869,5.62748269,142.77,142.74,6.3073]
[1768709078169,3.29770977,142.78,142.74,6.3073]
[1768709078369,5.62753146,142.77,142.74,6.3073]
[1768709078568,3.29770977,142.78,142.74,6.3073]
[1768709078768,5.62753146,142.77,142.72,8.06680553]
[1768709078969,3.29770977,142.78,142.72,1.75900553]
[1768709079168,5.62753146,142.77,142.72,1.75900553]
[1768709079370,3.29770977,142.78,142.72,1.75900553]
[1768709079574,5.62758104,142.77,142.72,1.75900553]
[1768709079771,3.29770977,142.78,142.73,6.3077]
[1768709079974,5.62758104,142.77,142.73,6.3077]
[1768709080172,3.29770977,142.78,142.73,6.3077]
[1768709080373,5.62763145,142.77,142.73,6.3077]
[1768709080575,3.29770977,142.78,142.73,6.3077]
[1768709080881,5.62763145,142.77,142.73,6.3077]
[1768709081072,3.29770977,142.78,142.73,6.3077]
[1768709081272,5.62763145,142.77,142.73,6.3077]
[1768709081468,3.29770977,142.78,142.73,6.3077]
[1768709081669,5.6276827,142.77,142.73,6.3077]
[1768709081869,3.29770977,142.78,142.73,6.3077]
[1768709082069,5.6276827,142.77,142.73,6.3077]
[1768709082275,3.29770977,142.78,142.73,6.3077]
[1768709082476,5.62773433,142.77,142.73,6.3077]
[1768709082676,3.29770977,142.78,142.73,6.3077]
[1768709082876,5.62773433,142.77,142.73,6.3077]
[1768709083068,3.29770977,142.78,142.73,6.3077]
[1768709083264,5.62773433,142.77,142.73,6.3077]
[1768709083470,3.29770977,142.78,142.73,6.3077]
[1768709083666,5.62778663,142.77,142.73,6.3077]
[1768709083870,3.29770977,142.78,142.72,8.06723417]
[1768709084169,5.62778663,142.77,142.72,8.06723417]
[1768709084371,3.29770977,142.78,142.72,8.06723417]
[1768709084571,5.62783979,142.77,142.72,8.06723417]
[1768709084769,3.29770977,142.78,142.72,8.06723417]
[1768709084971,5.62783979,142.77,142.72,8.06723417]
[1768709085170,3.29770977,142.78,142.72,8.06723417]
[1768709085372,5.62787823,142.77,142.72,8.06723417]
[1768709085571,3.29770977,142.78,142.72,8.06723417]
[1768709085773,5.62787823,142.77,142.72,8.06723417]
[1768709085972,3.29770977,142.78,142.72,8.06723417]
[1768709086173,5.62787823,142.77,142.72,8.06723417]
[1768709086472,3.29770977,142.78,142.72,8.06723417]
[1768709086671,5.62793041,142.77,142.72,8.06723417]
[1768709086875,3.29770977,142.78,142.72,8.06723417]
[1768709087075,5.62793041,142.77,142.72,8.06723417]
[1768709087273,3.29770977,142.78,142.72,8.06723417]
[1768709087473,5.62798345,142.77,142.72,8.06723417]
[1768709087676,3.29770977,142.78,142.72,8.06723417]
[1768709087875,5.62798345,142.77,142.72,8.06723417]
[1768709088080,3.29770977,142.78,142.72,8.06723417]
[1768709088376,5.62798345,142.77,142.72,8.06723417]
[1768709088579,3.29770977,142.78,142.72,8.06723417]
[1768709088770,5.62832351,142.77,142.72,8.06723417]
[1768709088970,3.29770977,142.78,142.72,8.06723417]
[1768709089169,5.62827518,142.77,142.72,8.06723417]
[1768709089379,3.29770977,142.78,142.72,8.06723417]
[1768709089574,5.62916363,142.77,142.72,8.06723417]
[1768709089774,3.29770977,142.78,142.72,8.06723417]
[1768709089974,5.62916363,142.77,142.72,8.06723417]
[1768709090179,3.29770977,142.78,142.72,8.06723417]
[1768709090379,5.62958102,142.77,142.72,8.06723417]
[1768709090577,3.29770977,142.78,142.72,8.06723417]
[1768709090779,5.6296245,142.77,142.72,8.06723417]
[1768709090977,3.29770977,142.78,142.72,8.06723417]
[1768709091179,5.6296245,142.77,142.72,8.06723417]
[1768709091480,3.29770977,142.78,142.72,8.06723417]
[1768709091676,5.63022823,142.77,142.72,8.06723417]
[1768709091869,3.29770977,142.78,142.72,8.06723417]
[1768709092075,5.63022823,142.77,142.72,8.06723417]
[1768709092270,3.29770977,142.78,142.72,8.06723417]
[1768709092475,5.63097079,142.77,142.72,8.06723417]
[1768709092675,3.29770977,142.78,142.72,8.06723417]
[1768709092876,5.63097079,142.77,142.72,8.06723417]
[1768709093076,3.29770977,142.78,142.72,8.06723417]
[1768709093278,5.63097079,142.77,142.72,8.06723417]
[1768709093482,3.29770977,142.78,142.72,8.06723417]
[1768709093685,5.63195864,142.77,142.72,8.06723417]
[1768709093880,3.29770977,142.78,142.72,8.06723417]
[1768709094185,5.63195864,142.77,142.72,8.06723417]
[1768709094377,3.29770977,142.78,142.72,8.06723417]
[1768709094686,5.63313377,142.77,142.72,8.06723417]
[1768709094985,3.29770977,142.78,142.72,8.06723417]
[1768709095186,5.63313377,142.77,142.72,8.06723417]
[1768709095384,3.29770977,142.78,142.72,8.06723417]
[1768709095584,5.63317509,142.77,142.72,8.06723417]
[1768709095786,3.29770977,142.78,142.72,8.06723417]
[1768709095983,5.63317509,142.77,142.72,8.06723417]
[1768709096188,3.29770977,142.78,142.72,8.06723417]
[1768709096385,5.63323445,142.77,142.72,8.06723417]
[1768709096586,3.29770977,142.78,142.72,8.06723417]
[1768709096888,5.63323445,142.77,142.72,8.06723417]
[1768709097087,3.29770977,142.78,142.72,8.06723417]
[1768709097287,5.63323445,142.77,142.72,8.06723417]
[1768709097488,3.29770977,142.78,142.72,8.06723417]
[1768709097688,5.63329901,142.77,142.72,8.06723417]
[1768709097888,3.29770977,142.78,142.72,8.06723417]
[1768709098191,5.63329901,142.77,142.72,8.06723417]
[1768709098392,3.29770977,142.78,142.72,8.06723417]
[1768709098587,5.63332787,142.77,142.72,8.06723417]
[1768709098784,3.29770977,142.78,142.72,8.06723417]
[1768709098986,5.63332787,142.77,142.72,8.06723417]
[1768709099185,3.29770977,142.78,142.72,8.06723417]
[1768709099392,5.63335848,142.77,142.72,8.06723417]
[1768709099591,3.29770977,142.78,142.72,8.06723417]
[1768709099791,5.63335848,142.77,142.72,8.06723417]
[1768709099988,3.29770977,142.78,142.72,8.06723417]
[1768709100287,5.63335848,142.77,142.72,8.06723417]
[1768709100489,3.29770977,142.78,142.72,8.06723417]
[1768709100688,5.63337555,142.77,142.72,8.06723417]
[1768709100891,3.29770977,142.78,142.72,8.06723417]
[1768709101092,5.63337555,142.77,142.72,8.06723417]
[1768709101390,3.29770977,142.78,142.72,8.06723417]
[1768709101692,5.63341064,142.77,142.72,8.06723417]
[1768709101893,3.29770977,142.78,142.72,8.06723417]
[1768709102096,5.63341064,142.77,142.72,8.06723417]
[1768709102397,3.29770977,142.78,142.72,1.75933417]
[1768709102596,3.23259756,142.8,142.74,1.75933417]
[1768709102788,5.63270541,142.79,142.74,1.75933417]
[1768709102988,3.23259756,142.8,142.75,6.3068]
[1768709103296,5.63269643,142.79,142.75,6.3068]
[1768709103490,3.23259756,142.8,142.75,6.3068]
[1768709103691,5.63033287,142.79,142.75,6.3068]
[1768709103887,3.23259756,142.8,142.75,6.3068]
[1768709104189,5.63033287,142.79,142.75,6.3068]
[1768709104389,3.23259756,142.8,142.75,6.3068]
[1768709104600,5.62932282,142.79,142.75,6.3068]
[1768709104797,3.23259756,142.8,142.75,6.3068]
[1768709105104,5.62913258,142.79,142.75,6.3068]
[1768709105398,5.62625768,142.78,142.75,6.3068]
[1768709105593,3.23259756,142.8,142.75,6.3068]
[1768709105890,5.62644782,142.79,142.75,6.3068]
[1768709106092,5.62644782,142.78,142.75,6.3068]
[1768709106293,3.23259756,142.8,142.75,6.3068]
[1768709106496,5.62603749,142.79,142.75,6.3068]
[1768709106697,5.62603749,142.78,142.75,6.3068]
[1768709106896,3.23259756,142.8,142.75,6.3068]
[1768709107097,5.62603749,142.79,142.75,6.3068]
[1768709107297,5.62603749,142.78,142.75,6.3068]
[1768709107597,3.23259756,142.8,142.75,6.3068]
[1768709107798,5.62567122,142.79,142.75,6.3068]
[1768709107993,5.62567122,142.78,142.75,6.3068]
[1768709108191,3.23259756,142.8,142.75,6.3068]
[1768709108390,5.62559659,142.79,142.75,6.3068]
[1768709108697,5.62559659,142.78,142.75,6.3068]
[1768709108901,3.23259756,142.8,142.75,6.3068]
[1768709109097,5.62534188,142.79,142.75,6.3068]
[1768709109301,3.23259756,142.8,142.75,6.3068]
[1768709109498,5.62504431,142.79,142.75,6.3068]
[1768709109700,9.78225743,142.82,142.76,6.3063]
[1768709109894,5.62494345,142.81,142.76,6.3063]
[1768709110095,5.62494345,142.8,142.76,8.06563417]
[1768709110295,3.23259756,142.82,142.76,8.06563417]
[1768709110491,5.62326041,142.81,142.76,8.06563417]
[1768709110696,5.62326041,142.8,142.76,8.06563417]
[1768709110896,3.23259756,142.82,142.76,8.06563417]
[1768709111197,5.62326041,142.81,142.76,8.06563417]
[1768709111395,5.62326041,142.8,142.76,8.06563417]
[1768709111593,3.23259756,142.82,142.76,8.06563417]
[1768709111798,5.62212563,142.81,142.76,8.06563417]
[1768709111999,3.23259756,142.82,142.76,8.06563417]
[1768709112000,5.62212563,142.8,142.76,8.06563417]
[1768709112198,3.23259756,142.82,142.76,8.06563417]
[1768709112399,5.62116174,142.81,142.76,8.06563417]
[1768709112602,5.62116174,142.8,142.76,8.06563417]
[1768709112895,3.23259756,142.82,142.76,8.06563417]
[1768709113097,5.62115961,142.81,142.76,8.06563417]
[1768709113400,5.62115961,142.8,142.76,8.06563417]
[1768709113601,3.23259756,142.82,142.76,8.06563417]
[1768709113794,5.62033809,142.81,142.76,8.06563417]
[1768709113989,5.62033809,142.8,142.76,8.06563417]
[1768709114196,3.23259756,142.82,142.76,8.06563417]
[1768709114395,5.61960271,142.81,142.76,8.06563417]
[1768709114601,3.23259756,142.82,142.76,8.06563417]
[1768709114902,5.61960271,142.81,142.76,8.06563417]
[1768709115097,3.23259756,142.82,142.76,8.06563417]
[1768709115396,5.61960271,142.81,142.76,8.06563417]
[1768709115596,3.23259756,142.82,142.76,8.06563417]
[1768709115794,5.61895933,142.81,142.76,8.06563417]
[1768709115993,3.23259756,142.82,142.76,8.06563417]
[1768709116194,5.61895933,142.81,142.76,8.06563417]
[1768709116496,3.23259756,142.82,142.76,8.06563417]
[1768709116693,5.6183779,142.81,142.76,8.06563417]
[1768709116894,3.23259756,142.82,142.76,8.06563417]
[1768709117095,5.61837364,142.81,142.76,8.06563417]
[1768709117295,3.23259756,142.82,142.76,8.06563417]
[1768709117596,5.61784718,142.81,142.76,8.06563417]
[1768709117794,3.23259756,142.82,142.76,8.06563417]
[1768709117996,5.61784718,142.81,142.76,8.06563417]
[1768709118196,3.23259756,142.82,142.76,8.06563417]
[1768709118396,5.61772323,142.81,142.76,8.06563417]
[1768709118599,3.23259756,142.82,142.76,8.06563417]
[1768709118796,5.61738295,142.81,142.76,8.06563417]
[1768709119001,3.23259756,142.82,142.76,8.06563417]
[1768709119203,5.61738295,142.81,142.76,8.06563417]
[1768709119403,3.23259756,142.82,142.76,8.06563417]
[1768709119602,5.61697968,142.81,142.76,8.06563417]
[1768709119909,3.23259756,142.82,142.76,8.06563417]
[1768709120113,5.61697968,142.81,142.76,8.06563417]
[1768709120311,3.23259756,142.84,142.78,1.75933417]
[1768709120608,5.61627331,142.83,142.78,1.75933417]
[1768709120908,3.23259756,142.84,142.78,1.75933417]
[1768709121904,5.61355749,142.83,142.78,8.06473417]
[1768709122107,3.23259756,142.84,142.78,8.06473417]
[1768709124310,3.23259756,142.84,142.78,1.75933417]
[1768709124506,3.30978499,142.86,142.8,1.75933417]
[1768709124808,5.60948144,142.85,142.8,1.75933417]
[1768709125012,3.30978499,142.86,142.8,1.75933417]
[1768709125207,5.60928981,142.85,142.8,1.75933417]
[1768709125512,3.30978499,142.86,142.8,1.75933417]
[1768709125704,5.6076785,142.85,142.8,1.75933417]
[1768709125905,3.30978499,142.86,142.8,8.06383417]
[1768709126114,5.60786795,142.85,142.8,8.06383417]
[1768709126410,3.30978499,142.86,142.8,8.06383417]
[1768709126610,5.6067041,142.85,142.8,8.06383417]
[1768709126811,3.30978499,142.86,142.8,8.06383417]
[1768709127012,5.6067041,142.85,142.8,8.06383417]
[1768709127312,3.30978499,142.86,142.8,8.06383417]
[1768709132016,3.30978499,142.86,142.81,6.3041]
[1768709143521,5.5969801,142.85,142.81,6.3041]
[1768709143723,3.30978499,142.86,142.81,6.3041]
[1768709143924,5.59708568,142.85,142.81,6.3041]
[1768709144121,3.30978499,142.86,142.81,6.3041]
[1768709144323,5.5979033,142.85,142.81,6.3041]
[1768709144523,3.30978499,142.86,142.81,6.3041]
[1768709144724,5.5980216,142.85,142.81,6.3041]
[1768709145022,3.30978499,142.86,142.81,6.3041]
[1768709145223,5.5980216,142.85,142.81,6.3041]
[1768709145423,3.30978499,142.86,142.81,6.3041]
[1768709145622,5.59814307,142.85,142.81,6.3041]
[1768709145823,3.30978499,142.86,142.81,6.3041]
[1768709146128,5.59814307,142.85,142.81,6.3041]
[1768709146325,3.30978499,142.86,142.81,6.3041]
[1768709146516,3.06503797,142.84,142.79,6.3048]
[1768709149121,3.06503797,142.86,142.8,6.3045]
[1768709149321,5.60100376,142.85,142.8,6.3045]
[1768709149519,3.06503797,142.86,142.8,6.3045]
[1768709149723,5.60155104,142.85,142.8,6.3045]
[1768709149924,3.06503797,142.86,142.8,6.3045]
[1768709150125,5.60155104,142.85,142.8,6.3045]
[1768709150324,3.06503797,142.86,142.8,6.3045]
[1768709150524,5.60218835,142.85,142.8,6.3045]
[1768709150726,3.06503797,142.86,142.8,6.3045]
[1768709150929,5.60218835,142.85,142.8,6.3045]
[1768709151128,3.06503797,142.86,142.8,6.3045]
[1768709151330,5.60218835,142.85,142.8,6.3045]
[1768709151530,3.06503797,142.86,142.8,6.3045]
[1768709151831,5.60308874,142.85,142.8,6.3045]
[1768709152020,3.06503797,142.86,142.8,6.3045]
[1768709152222,5.60308874,142.85,142.8,6.3045]
[1768709152424,3.06503797,142.86,142.8,6.3045]
[1768709152727,5.60382517,142.85,142.8,6.3045]
[1768709152925,3.06503797,142.86,142.8,6.3045]
[1768709153123,5.60382517,142.85,142.8,6.3045]
[1768709153321,3.06503797,142.86,142.8,6.3045]
[1768709153631,5.60489419,142.85,142.8,6.3045]
[1768709153934,5.60489419,142.84,142.8,6.3045]
[1768709154132,3.06503797,142.86,142.8,6.3045]
[1768709154431,5.60508352,142.85,142.8,6.3045]
[1768709154630,5.60508352,142.84,142.8,6.3045]
[1768709154828,3.06503797,142.86,142.8,6.3045]
[1768709155022,5.60639024,142.85,142.8,6.3045]
[1768709155223,5.60639024,142.84,142.8,6.3045]
[1768709155419,3.06503797,142.86,142.8,6.3045]
[1768709155726,5.6069494,142.85,142.8,6.3045]
[1768709155930,5.6069494,142.84,142.8,6.3045]
[1768709156131,3.06503797,142.86,142.8,6.3045]
[1768709156328,5.6069494,142.85,142.8,6.3045]
[1768709156536,5.6069494,142.84,142.8,6.3045]
[1768709156826,3.06503797,142.86,142.8,6.3045]
[1768709157131,5.60756586,142.85,142.8,6.3045]
[1768709157326,5.60756586,142.84,142.8,6.3045]
[1768709157521,3.06503797,142.86,142.8,6.3045]
[1768709157722,5.60816593,142.85,142.8,6.3045]
[1768709158018,5.60816593,142.84,142.8,6.3045]
[1768709158222,3.06503797,142.86,142.8,6.3045]
[1768709158423,5.60903867,142.85,142.8,6.3045]
[1768709158625,5.60903867,142.84,142.8,6.3045]
[1768709158826,3.06503797,142.86,142.8,6.3045]
[1768709159024,5.60894394,142.85,142.8,6.3045]
[1768709159234,3.06503797,142.86,142.8,6.3045]
[1768709159526,5.60965623,142.85,142.8,6.3045]
[1768709159726,5.60965623,142.84,142.8,6.3045]
[1768709159926,3.06503797,142.86,142.8,6.3045]
[1768709160126,5.60965623,142.85,142.8,6.3045]
[1768709160334,5.61053253,142.84,142.8,6.3045]
[1768709160533,3.06503797,142.86,142.8,6.3045]
[1768709160728,5.61052487,142.85,142.8,6.3045]
[1768709160928,3.06503797,142.86,142.8,6.3045]
[1768709161129,5.6100434,142.85,142.8,6.3045]
[1768709161330,3.06503797,142.86,142.8,6.3045]
[1768709161532,3.06830993,142.89,142.83,1.75727513]
[1768709162333,3.06830993,142.92,142.83,1.75727513]
[1768709163231,3.06830993,142.92,142.85,6.3024]
[1768709163438,3.06830993,142.92,142.85,8.05967513]
[1768709164136,3.06830993,142.91,142.83,6.3031]
[1768709164440,3.06830993,142.89,142.83,6.3031]
[1768709166845,3.06830993,142.89,142.81,8.06117513]
[1768709173543,8.67847464,142.88,142.81,8.06117513]
[1768709173749,5.61016471,142.87,142.81,8.06117513]
[1768709173949,3.06830993,142.88,142.81,8.06117513]
[1768709174254,5.6102131,142.87,142.81,8.06117513]
[1768709174450,3.06830993,142.88,142.81,8.06117513]
[1768709174651,5.61003934,142.87,142.81,8.06117513]
[1768709174852,3.06830993,142.88,142.81,8.06117513]
[1768709175050,5.61003934,142.87,142.81,8.06117513]
[1768709175247,3.06830993,142.88,142.81,8.06117513]
[1768709175447,5.60991772,142.87,142.81,8.06117513]
[1768709175746,3.06830993,142.88,142.81,8.06117513]
[1768709176051,5.60991772,142.87,142.81,8.06117513]
[1768709176248,3.06830993,142.88,142.81,8.06117513]
[1768709176551,5.60979867,142.87,142.81,8.06117513]
[1768709176851,3.06830993,142.88,142.81,8.06117513]
[1768709177042,5.60979867,142.87,142.81,8.06117513]
[1768709177246,3.06830993,142.88,142.81,8.06117513]
[1768709177454,5.60969954,142.87,142.81,8.06117513]
[1768709177646,3.06830993,142.88,142.81,8.06117513]
[1768709177951,8.67800947,142.87,142.81,8.06117513]
[1768709178151,3.06830993,142.87,142.81,8.06117513]